fUSD/lending_fUSD_20250716
["ID","MTS","AMOUNT","RATE_DAILY","PERIOD"]
[372603364,1752701447788,-779.72967,0.00019754,2]
[372603365,1752701447797,-151.0,0.00019754,2]
[372603367,1752701447809,-779.72967,0.00019754,2]
[372603369,1752701447819,-151.0,0.00019754,2]
[372603371,1752701447828,-282.851188,0.00019754,2]
[372603373,1752701447838,-151.0,0.00019754,2]
[372603375,1752701447848,-164.772086,0.00019754,2]
[372603377,1752701447857,-164.772086,0.00019754,2]
[372603379,1752701447866,-151.0,0.00019754,2]
[372603381,1752701447875,-151.0,0.00019754,2]
[372603384,1752701447888,-151.0,0.00019754,2]
[372603386,1752701447898,-1300.0,0.00019756,2]
[372603387,1752701447907,-3000.0,0.00019756,2]
[372603389,1752701447916,-7393.8708363,0.00019762,2]
[372603391,1752701447926,-804.88,0.0001977,2]
[372603393,1752701447935,-500.0,0.0001977,2]
[372603395,1752701447944,-500.0,0.0001977,2]
[372603397,1752701447953,-500.0,0.0001977,2]
[372603399,1752701447963,-500.0,0.0001977,2]
[372603401,1752701447973,-1143.16,0.0001977,2]
[372603403,1752701447982,-500.0,0.0001977,2]
[372603405,1752701447991,-345.57878425,0.0001977,2]
[372603407,1752701448000,-2192.0,0.0001977,2]
[372603409,1752701448011,-500.0,0.0001977,2]
[372603411,1752701448021,-151.0,0.00019771,2]
[372603413,1752701448032,-151.0,0.00019771,2]
[372603415,1752701448041,-151.0,0.00019771,2]
[372603417,1752701448051,-151.0,0.00019771,2]
[372603419,1752701448060,-151.0,0.00019771,2]
[372603421,1752701448070,-151.0,0.00019771,2]
[372603422,1752701448079,-151.0,0.00019771,2]
[372603424,1752701448089,-2620.926489,0.00019771,2]
[372603426,1752701448099,-2620.926489,0.00019771,2]
[372603427,1752701448108,-151.0,0.00019771,2]
[372603429,1752701448118,-151.0,0.00019771,2]
[372603431,1752701448128,-151.0,0.00019771,2]
[372603433,1752701448137,-1304.536516,0.00019771,2]
[372603435,1752701448147,-151.0,0.00019771,2]
[372603437,1752701448156,-2886.69,0.00019771,2]
[372603439,1752701448166,-151.0,0.00019771,2]
[372603441,1752701448175,-1312.875295,0.00019771,2]
[372603443,1752701448185,-1510.17,0.00019771,2]
[372603445,1752701448194,-1312.875295,0.00019771,2]
[372603447,1752701448203,-2559.67,0.00019771,2]
[372603449,1752701448213,-804.88,0.00019771,2]
[372603451,1752701448222,-1477.57,0.00019771,2]
[372603453,1752701448232,-460.0,0.00019771,2]
[372603455,1752701448242,-740.88,0.00019771,2]
[372603457,1752701448251,-151.0,0.00019771,2]
[372603458,1752701448260,-460.0,0.00019771,2]
[372603460,1752701448270,-630.77,0.00019771,2]
[372603462,1752701448281,-212.464985,0.00019771,2]
[372603464,1752701448291,-212.464985,0.00019771,2]
[372603466,1752701448300,-1361.13,0.00019771,2]
[372603468,1752701448310,-1393.11,0.00019771,2]
[372603470,1752701448319,-327.879735,0.00019771,2]
[372603472,1752701448328,-1268.51,0.00019771,2]
[372603474,1752701448337,-327.879735,0.00019771,2]
[372603476,1752701448347,-859.3,0.00019771,2]
[372603478,1752701448356,-517.35,0.00019771,2]
[372603480,1752701448366,-522.57,0.00019771,2]
[372603482,1752701448376,-500.0,0.00019771,2]
[372603484,1752701448385,-855.64,0.00019771,2]
[372603486,1752701448394,-951.82,0.00019771,2]
[372603488,1752701448404,-681.14,0.00019771,2]
[372603490,1752701448413,-1377.23,0.00019771,2]
[372603492,1752701448422,-500.0,0.00019771,2]
[372603494,1752701448432,-496.24,0.00019771,2]
[372603496,1752701448441,-500.0,0.00019771,2]
[372603498,1752701448451,-1496.6,0.00019771,2]
[372603500,1752701448460,-643.78,0.00019771,2]
[372603502,1752701448469,-460.0,0.00019771,2]
[372603504,1752701448480,-460.0,0.00019771,2]
[372603506,1752701448489,-498.56,0.00019771,2]
[372603508,1752701448499,-931.06,0.00019771,2]
[372603510,1752701448508,-460.0,0.00019771,2]
[372603512,1752701448517,-151.0,0.00019771,2]
[372603514,1752701448528,-500.0,0.00019771,2]
[372603516,1752701448537,-1316.35,0.00019771,2]
[372603518,1752701448546,-460.0,0.00019771,2]
[372603520,1752701448556,-460.0,0.00019771,2]
[372603522,1752701448565,-460.0,0.00019771,2]
[372603524,1752701448575,-151.0,0.00019771,2]
[372603525,1752701448585,-500.0,0.00019771,2]
[372603527,1752701448594,-500.0,0.00019771,2]
[372603529,1752701448604,-1143.16,0.00019771,2]
[372603531,1752701448613,-151.0,0.00019771,2]
[372603533,1752701448622,-500.0,0.00019771,2]
[372603535,1752701448631,-151.0,0.00019771,2]
[372603537,1752701448641,-285.574506,0.00019771,2]
[372603539,1752701448650,-285.574506,0.00019771,2]
[372603541,1752701448659,-571.784908,0.00019771,2]
[372603543,1752701448669,-571.784908,0.00019771,2]
[372603544,1752701448679,-2192.0,0.00019771,2]
[372603545,1752701448688,-373.495347,0.00019771,2]
[372603546,1752701448698,-151.0,0.00019772,2]
[372603547,1752701448707,-151.0,0.00019772,2]
[372603548,1752701448717,-151.0,0.00019772,2]
[372603549,1752701448727,-151.0,0.00019772,2]
[372603550,1752701448736,-151.0,0.00019772,2]
[372603551,1752701448746,-151.0,0.00019772,2]
[372603552,1752701448755,-151.0,0.00019772,2]
[372603553,1752701448765,-151.0,0.00019772,2]
[372603554,1752701448774,-151.0,0.00019772,2]
[372603555,1752701448784,-151.0,0.00019772,2]
[372603556,1752701448795,-151.0,0.00019772,2]
[372603557,1752701448804,-151.0,0.00019772,2]
[372603559,1752701448817,-151.0,0.00019772,2]
[372603561,1752701448826,-151.0,0.00019772,2]
[372603563,1752701448835,-151.0,0.00019772,2]
[372603564,1752701448844,-151.0,0.00019772,2]
[372603566,1752701448854,-152.065048,0.00019772,2]
[372603569,1752701448863,-151.0,0.00019772,2]
[372603570,1752701448872,-151.0,0.00019772,2]
[372603573,1752701448884,-151.0,0.00019772,2]
[372603575,1752701448893,-151.0,0.00019772,2]
[372603577,1752701448903,-151.0,0.00019772,2]
[372603579,1752701448912,-182.850985,0.00019772,2]
[372603580,1752701448922,-182.850985,0.00019772,2]
[372603582,1752701448932,-151.0,0.00019772,2]
[372603584,1752701448941,-151.0,0.00019772,2]
[372603587,1752701448952,-341.898295,0.00019772,2]
[372603588,1752701448961,-227.597789,0.00019772,2]
[372603591,1752701448971,-341.898295,0.00019772,2]
[372603592,1752701448981,-227.597789,0.00019772,2]
[372603595,1752701448991,-151.0,0.00019772,2]
[372603596,1752701449000,-151.0,0.00019772,2]
[372603598,1752701449010,-151.0,0.00019772,2]
[372603600,1752701449019,-151.0,0.00019772,2]
[372603602,1752701449029,-151.141842,0.00019772,2]
[372603604,1752701449040,-151.0,0.00019772,2]
[372603606,1752701449049,-151.0,0.00019772,2]
[372603608,1752701449059,-151.0,0.00019772,2]
[372603610,1752701449069,-193.192268,0.00019772,2]
[372603612,1752701449079,-193.192268,0.00019772,2]
[372603614,1752701449088,-460.0,0.00019772,2]
[372603616,1752701449098,-460.0,0.00019772,2]
[372603618,1752701449107,-341.46609568,0.00019772,2]
[372603620,1752701449117,-460.0,0.00019772,2]
[372603622,1752701449127,-460.0,0.00019772,2]
[372603624,1752701449136,-460.0,0.00019772,2]
[372603626,1752701449146,-460.0,0.00019772,2]
[372603628,1752701449155,-460.0,0.00019772,2]
[372603630,1752701449165,-751.931418,0.00019772,2]
[372603632,1752701449174,-497.85,0.00019772,2]
[372603634,1752701449184,-751.931418,0.00019772,2]
[372603636,1752701449194,-460.0,0.00019772,2]
[372603638,1752701449205,-801.68,0.00019772,2]
[372603640,1752701449215,-535.18550401,0.00019772,2]
[372603642,1752701449224,-460.0,0.00019772,2]
[372603644,1752701449234,-151.0,0.00019772,2]
[372603646,1752701449244,-460.0,0.00019772,2]
[372603648,1752701449253,-151.0,0.00019772,2]
[372603650,1752701449263,-2808.12758838,0.00019772,2]
[372603652,1752701449272,-460.0,0.00019772,2]
[372603654,1752701449283,-460.0,0.00019772,2]
[372603656,1752701449293,-460.0,0.00019772,2]
[372603657,1752701449302,-175.635195,0.00019772,2]
[372603659,1752701449312,-151.0,0.00019772,2]
[372603661,1752701449321,-489.23,0.00019772,2]
[372603663,1752701449331,-175.635195,0.00019772,2]
[372603665,1752701449341,-151.0,0.00019772,2]
[372603668,1752701449351,-460.0,0.00019772,2]
[372603670,1752701449362,-460.0,0.00019772,2]
[372603671,1752701449371,-460.0,0.00019772,2]
[372603673,1752701449381,-890.12,0.00019772,2]
[372603675,1752701449389,-151.0,0.00019772,2]
[372603677,1752701449399,-460.0,0.00019772,2]
[372603679,1752701449408,-151.0,0.00019772,2]
[372603681,1752701449417,-460.0,0.00019772,2]
[372603683,1752701449426,-151.0,0.00019772,2]
[372603685,1752701449435,-460.0,0.00019772,2]
[372603687,1752701449444,-1519.52,0.00019772,2]
[372603689,1752701449453,-151.0,0.00019772,2]
[372603691,1752701449462,-460.0,0.00019772,2]
[372603693,1752701449472,-460.0,0.00019772,2]
[372603695,1752701449481,-151.0,0.00019772,2]
[372603697,1752701449490,-460.0,0.00019772,2]
[372603699,1752701449499,-460.0,0.00019772,2]
[372603701,1752701449509,-460.0,0.00019772,2]
[372603703,1752701449518,-460.0,0.00019772,2]
[372603705,1752701449529,-460.0,0.00019772,2]
[372603707,1752701449538,-460.0,0.00019772,2]
[372603709,1752701449547,-151.0,0.00019772,2]
[372603711,1752701449556,-460.0,0.00019772,2]
[372603713,1752701449565,-460.0,0.00019772,2]
[372603715,1752701449575,-460.0,0.00019772,2]
[372603717,1752701449584,-460.0,0.00019772,2]
[372603719,1752701449593,-460.0,0.00019772,2]
[372603721,1752701449603,-460.0,0.00019772,2]
[372603723,1752701449612,-460.0,0.00019772,2]
[372603725,1752701449621,-487.77,0.00019772,2]
[372603727,1752701449631,-151.0,0.00019772,2]
[372603729,1752701449640,-460.0,0.00019772,2]
[372603731,1752701449649,-460.0,0.00019772,2]
[372603733,1752701449659,-1312.875295,0.00019772,2]
[372603735,1752701449669,-460.0,0.00019772,2]
[372603737,1752701449678,-1312.875295,0.00019772,2]
[372603739,1752701449687,-151.0,0.00019772,2]
[372603741,1752701449696,-460.0,0.00019772,2]
[372603742,1752701449705,-460.0,0.00019772,2]
[372603745,1752701449715,-460.0,0.00019772,2]
[372603746,1752701449726,-460.0,0.00019772,2]
[372603748,1752701449736,-1155.68,0.00019772,2]
[372603750,1752701449748,-151.0,0.00019772,2]
[372603752,1752701449757,-460.0,0.00019772,2]
[372603754,1752701449767,-151.0,0.00019772,2]
[372603756,1752701449776,-151.0,0.00019772,2]
[372603758,1752701449785,-212.464985,0.00019772,2]
[372603760,1752701449796,-212.464985,0.00019772,2]
[372603762,1752701449806,-151.0,0.00019772,2]
[372603764,1752701449817,-151.0,0.00019772,2]
[372603766,1752701449826,-327.879735,0.00019772,2]
[372603768,1752701449836,-327.879735,0.00019772,2]
[372603770,1752701449846,-151.0,0.00019772,2]
[372603772,1752701449855,-151.0,0.00019772,2]
[372603774,1752701449865,-151.0,0.00019772,2]
[372603776,1752701449874,-151.0,0.00019772,2]
[372603778,1752701449886,-151.0,0.00019772,2]
[372603780,1752701449896,-151.0,0.00019772,2]
[372603782,1752701449906,-151.0,0.00019772,2]
[372603784,1752701449915,-151.0,0.00019772,2]
[372603786,1752701449924,-217.784488,0.00019772,2]
[372603788,1752701449933,-151.0,0.00019772,2]
[372603790,1752701449943,-151.0,0.00019772,2]
[372603792,1752701449952,-151.0,0.00019772,2]
[372603794,1752701449962,-151.0,0.00019772,2]
[372603796,1752701449971,-151.0,0.00019772,2]
[372603798,1752701449981,-779.72967,0.00019772,2]
[372603800,1752701449990,-151.0,0.00019772,2]
[372603802,1752701450000,-779.72967,0.00019772,2]
[372603804,1752701450009,-151.0,0.00019772,2]
[372603806,1752701450018,-151.0,0.00019772,2]
[372603808,1752701450028,-164.772086,0.00019772,2]
[372603810,1752701450037,-164.772086,0.00019772,2]
[372603812,1752701450047,-151.0,0.00019772,2]
[372603814,1752701450055,-151.0,0.00019772,2]
[372603816,1752701450064,-151.0,0.00019772,2]
[372603818,1752701450074,-151.0,0.00019772,2]
[372603820,1752701450083,-151.0,0.00019773,2]
[372603822,1752701450092,-151.0,0.00019773,2]
[372603824,1752701450101,-151.0,0.00019774,2]
[372603826,1752701450111,-151.0,0.00019774,2]
[372603828,1752701450120,-168.0,0.00019775,2]
[372603830,1752701450129,-168.0,0.00019775,2]
[372603832,1752701450139,-2620.926489,0.00019777,2]
[372603834,1752701450147,-2620.926489,0.00019777,2]
[372603836,1752701450156,-1304.536516,0.00019777,2]
[372603838,1752701450166,-151.0,0.00019777,2]
[372603840,1752701450176,-151.0,0.00019777,2]
[372603842,1752701450186,-2000.0,0.00019777,2]
[372603844,1752701450196,-500.0,0.00019777,2]
[372603846,1752701450205,-500.0,0.00019777,2]
[372603848,1752701450215,-200.0,0.00019777,2]
[372603850,1752701450224,-151.0,0.00019777,2]
[372603851,1752701450233,-151.0,0.00019777,2]
[372603853,1752701450243,-228.21683652,0.00019781,4]
[372603855,1752701450251,-150.0,0.00019781,4]
[372603857,1752701450260,-150.0,0.00019781,4]
[372603859,1752701450270,-172.44639174,0.00019781,4]
[372603861,1752701450279,-150.0,0.00019781,4]
[372603863,1752701450288,-8589.63,0.0001979,2]
[372603865,1752701450298,-152.0,0.00019796,4]
[372603867,1752701450308,-300.01283225,0.000198,2]
[372603869,1752701450318,-151.0,0.000198,2]
[372603871,1752701450327,-1746.0,0.000198,2]
[372603873,1752701450336,-700.0,0.000198,7]
[372603875,1752701450346,-500.0,0.00019807,2]
[372603877,1752701450355,-500.0,0.00019807,2]
[372603880,1752701450364,-351.91081502,0.00019807,2]
[372603881,1752701450373,-460.0,0.00019808,2]
[372603883,1752701450382,-460.0,0.00019808,2]
[372603886,1752701450393,-460.0,0.00019808,2]
[372603888,1752701450402,-552.51,0.00019808,2]
[372603890,1752701450411,-460.0,0.00019808,2]
[372603892,1752701450421,-460.0,0.00019808,2]
[372603893,1752701450430,-460.0,0.00019808,2]
[372603895,1752701450439,-460.0,0.00019808,2]
[372603897,1752701450449,-213.9639687,0.00019808,2]
[372603900,1752701450459,-956.06,0.00019808,2]
[372603901,1752701450468,-619.09,0.00019808,2]
[372603903,1752701450477,-460.0,0.00019808,2]
[372603905,1752701450486,-460.0,0.00019808,2]
[372603907,1752701450495,-460.0,0.00019808,2]
[372603909,1752701450504,-460.0,0.00019808,2]
[372603911,1752701450514,-460.0,0.00019808,2]
[372603913,1752701450524,-460.0,0.00019808,2]
[372603915,1752701450534,-553.57,0.00019808,2]
[372603917,1752701450544,-460.0,0.00019808,2]
[372603919,1752701450553,-869.99,0.00019808,2]
[372603921,1752701450563,-460.0,0.00019808,2]
[372603923,1752701450573,-460.0,0.00019808,2]
[372603925,1752701450583,-460.0,0.00019808,2]
[372603927,1752701450592,-460.0,0.00019808,2]
[372603929,1752701450602,-480.87,0.00019808,2]
[372603931,1752701450612,-460.0,0.00019808,2]
[372603934,1752701450622,-460.0,0.00019808,2]
[372603935,1752701450631,-460.0,0.00019808,2]
[372603938,1752701450641,-460.0,0.00019808,2]
[372603940,1752701450650,-523.56,0.00019808,2]
[372603942,1752701450659,-1254.71,0.00019808,2]
[372603943,1752701450669,-179.8118286,0.00019808,2]
[372603945,1752701450678,-151.0,0.00019808,2]
[372603947,1752701450688,-460.0,0.00019808,2]
[372603949,1752701450697,-460.0,0.00019808,2]
[372603951,1752701450707,-151.0,0.00019808,2]
[372603953,1752701450716,-695.61,0.00019808,2]
[372603955,1752701450725,-460.0,0.00019808,2]
[372603957,1752701450734,-542.27,0.00019808,2]
[372603959,1752701450743,-460.0,0.00019808,2]
[372603961,1752701450752,-151.0,0.00019808,2]
[372603963,1752701450761,-460.0,0.00019808,2]
[372603965,1752701450771,-460.0,0.00019808,2]
[372603967,1752701450782,-151.0,0.00019808,2]
[372603969,1752701450791,-460.0,0.00019808,2]
[372603971,1752701450804,-460.0,0.00019808,2]
[372603973,1752701450813,-555.72,0.00019808,2]
[372603975,1752701450822,-460.0,0.00019808,2]
[372603977,1752701450832,-460.0,0.00019808,2]
[372603979,1752701450842,-460.0,0.00019808,2]
[372603981,1752701450851,-526.40444924,0.00019808,2]
[372603983,1752701450860,-677.33,0.00019808,2]
[372603985,1752701450870,-460.0,0.00019808,2]
[372603987,1752701450881,-460.0,0.00019808,2]
[372603989,1752701450890,-151.0,0.00019808,2]
[372603991,1752701450900,-460.0,0.00019808,2]
[372603993,1752701450910,-151.0,0.00019808,2]
[372603995,1752701450920,-460.0,0.00019808,2]
[372603997,1752701450930,-460.0,0.00019808,2]
[372603999,1752701450939,-490.0,0.00019808,2]
[372604001,1752701450949,-460.0,0.00019808,2]
[372604003,1752701450959,-734.71,0.00019808,2]
[372604005,1752701450969,-460.0,0.00019808,2]
[372604007,1752701450978,-522.92,0.00019808,2]
[372604009,1752701450987,-460.0,0.00019808,2]
[372604010,1752701450996,-460.0,0.00019808,2]
[372604012,1752701451008,-460.0,0.00019808,2]
[372604014,1752701451017,-460.0,0.00019808,2]
[372604016,1752701451026,-603.42,0.00019808,2]
[372604018,1752701451037,-460.0,0.00019808,2]
[372604021,1752701451046,-151.0,0.00019808,2]
[372604022,1752701451056,-460.0,0.00019808,2]
[372604025,1752701451066,-460.0,0.00019808,2]
[372604026,1752701451075,-460.0,0.00019808,2]
[372604029,1752701451084,-460.0,0.00019808,2]
[372604030,1752701451093,-461.42462784,0.00019808,2]
[372604032,1752701451103,-460.0,0.00019808,2]
[372604035,1752701451112,-460.0,0.00019808,2]
[372604036,1752701451123,-460.0,0.00019808,2]
[372604038,1752701451132,-460.0,0.00019808,2]
[372604040,1752701451142,-509.3,0.00019808,2]
[372604043,1752701451153,-460.0,0.00019808,2]
[372604045,1752701451162,-151.0,0.00019808,2]
[372604047,1752701451171,-460.0,0.00019808,2]
[372604049,1752701451181,-460.0,0.00019808,2]
[372604051,1752701451191,-151.0,0.00019808,2]
[372604053,1752701451200,-460.0,0.00019808,2]
[372604054,1752701451211,-460.0,0.00019808,2]
[372604056,1752701451220,-460.0,0.00019808,2]
[372604058,1752701451230,-460.0,0.00019808,2]
[372604061,1752701451239,-460.0,0.00019808,2]
[372604062,1752701451248,-460.0,0.00019808,2]
[372604064,1752701451257,-460.0,0.00019808,2]
[372604067,1752701451266,-460.0,0.00019808,2]
[372604069,1752701451276,-460.0,0.00019808,2]
[372604070,1752701451287,-460.0,0.00019808,2]
[372604072,1752701451296,-460.0,0.00019808,2]
[372604074,1752701451305,-576.65,0.00019808,2]
[372604076,1752701451315,-909.2,0.00019808,2]
[372604078,1752701451324,-460.0,0.00019808,2]
[372604080,1752701451333,-975.0,0.00019808,2]
[372604082,1752701451342,-472.73,0.00019808,2]
[372604084,1752701451352,-460.0,0.00019808,2]
[372604086,1752701451361,-460.0,0.00019808,2]
[372604088,1752701451369,-460.0,0.00019808,2]
[372604090,1752701451378,-464.94,0.00019808,2]
[372604092,1752701451387,-460.0,0.00019808,2]
[372604093,1752701451396,-462.80200449,0.00019808,2]
[372604094,1752701451405,-460.0,0.00019808,2]
[372604095,1752701451415,-805.84,0.00019808,2]
[372604096,1752701451424,-460.0,0.00019808,2]
[372604097,1752701451433,-460.0,0.00019808,2]
[372604098,1752701451442,-460.0,0.00019808,2]
[372604099,1752701451451,-460.0,0.00019808,2]
[372604100,1752701451461,-151.0,0.00019808,2]
[372604101,1752701451471,-460.0,0.00019808,2]
[372604102,1752701451480,-460.0,0.00019808,2]
[372604104,1752701451489,-460.0,0.00019808,2]
[372604106,1752701451499,-460.0,0.00019808,2]
[372604108,1752701451508,-460.0,0.00019808,2]
[372604110,1752701451518,-460.0,0.00019808,2]
[372604112,1752701451528,-511.8241127,0.00019808,2]
[372604114,1752701451538,-578.99922722,0.00019808,2]
[372604116,1752701451547,-1071.65,0.00019808,2]
[372604117,1752701451556,-460.0,0.00019808,2]
[372604120,1752701451566,-460.0,0.00019808,2]
[372604122,1752701451576,-1312.875295,0.00019808,2]
[372604124,1752701451587,-460.0,0.00019808,2]
[372604126,1752701451597,-1312.875295,0.00019808,2]
[372604128,1752701451607,-151.0,0.00019808,2]
[372604130,1752701451616,-151.0,0.00019808,2]
[372604132,1752701451625,-460.0,0.00019808,2]
[372604134,1752701451635,-460.0,0.00019808,2]
[372604135,1752701451647,-460.0,0.00019808,2]
[372604137,1752701451658,-460.0,0.00019808,2]
[372604140,1752701451669,-460.0,0.00019808,2]
[372604141,1752701451680,-460.0,0.00019808,2]
[372604155,1752701451691,-460.0,0.00019808,2]
[372604158,1752701451824,-460.0,0.00019808,2]
[372604160,1752701451835,-1371.3,0.00019808,2]
[372604162,1752701451845,-877.73,0.00019808,2]
[372604164,1752701451854,-460.0,0.00019808,2]
[372604166,1752701451864,-460.0,0.00019808,2]
[372604168,1752701451874,-404.22941133,0.00019808,2]
[372604170,1752701451884,-691.31,0.00019808,2]
[372604172,1752701451894,-460.0,0.00019808,2]
[372604174,1752701451903,-460.0,0.00019808,2]
[372604176,1752701451913,-460.0,0.00019808,2]
[372604178,1752701451923,-460.0,0.00019808,2]
[372604180,1752701451933,-460.0,0.00019808,2]
[372604182,1752701451943,-460.0,0.00019808,2]
[372604184,1752701451953,-460.0,0.00019808,2]
[372604186,1752701451963,-505.6305975,0.00019808,2]
[372604188,1752701451972,-1011.19,0.00019808,2]
[372604190,1752701451982,-1577.83,0.00019808,2]
[372604192,1752701451992,-460.0,0.00019808,2]
[372604194,1752701452002,-482.25,0.00019808,2]
[372604196,1752701452016,-462.56377332,0.00019808,2]
[372604198,1752701452033,-460.0,0.00019808,2]
[372604200,1752701452043,-460.0,0.00019808,2]
[372604202,1752701452053,-712.81,0.00019808,2]
[372604204,1752701452063,-151.0,0.00019808,2]
[372604206,1752701452073,-460.0,0.00019808,2]
[372604208,1752701452083,-168.64369747,0.00019808,2]
[372604210,1752701452095,-460.0,0.00019808,2]
[372604212,1752701452105,-460.0,0.00019808,2]
[372604214,1752701452114,-962.45,0.00019808,2]
[372604216,1752701452124,-460.0,0.00019808,2]
[372604218,1752701452133,-460.0,0.00019808,2]
[372604220,1752701452143,-930.39,0.00019808,2]
[372604222,1752701452153,-460.0,0.00019808,2]
[372604225,1752701452163,-460.0,0.00019808,2]
[372604227,1752701452172,-638.8,0.00019808,2]
[372604229,1752701452182,-460.0,0.00019808,2]
[372604231,1752701452192,-460.0,0.00019808,2]
[372604232,1752701452202,-460.0,0.00019808,2]
[372604235,1752701452213,-218.24748523,0.00019808,2]
[372604236,1752701452223,-1840.84,0.00019808,2]
[372604239,1752701452232,-460.0,0.00019808,2]
[372604241,1752701452243,-460.0,0.00019808,2]
[372604243,1752701452252,-500.0,0.00019808,5]
[372604245,1752701452262,-497.88679973,0.00019808,2]
[372604247,1752701452271,-2532.14,0.00019808,2]
[372604249,1752701452282,-1111.69,0.00019808,2]
[372604251,1752701452292,-157.177911,0.00019808,2]
[372604253,1752701452302,-546.99,0.00019808,2]
[372604255,1752701452312,-460.0,0.00019808,2]
[372604257,1752701452322,-179.346418,0.00019808,2]
[372604259,1752701452334,-460.0,0.00019808,2]
[372604261,1752701452348,-460.0,0.00019808,2]
[372604263,1752701452358,-460.0,0.00019808,2]
[372604265,1752701452367,-460.0,0.00019808,2]
[372604267,1752701452377,-460.0,0.00019808,2]
[372604269,1752701452386,-636.55,0.00019808,2]
[372604270,1752701452394,-1030.03,0.00019808,2]
[372604272,1752701452404,-212.464985,0.00019808,2]
[372604275,1752701452414,-621.62,0.00019808,2]
[372604276,1752701452423,-460.0,0.00019808,2]
[372604278,1752701452433,-212.464985,0.00019808,2]
[372604280,1752701452442,-460.0,0.00019808,2]
[372604282,1752701452452,-460.0,0.00019808,2]
[372604284,1752701452461,-152.53689427,0.00019808,2]
[372604287,1752701452471,-151.0,0.00019808,2]
[372604289,1752701452481,-151.0,0.00019808,2]
[372604291,1752701452491,-537.57,0.00019808,2]
[372604293,1752701452500,-460.0,0.00019808,2]
[372604295,1752701452510,-162.97046195,0.00019808,2]
[372604297,1752701452520,-460.0,0.00019808,2]
[372604299,1752701452530,-1210.51,0.00019808,2]
[372604301,1752701452540,-460.0,0.00019808,2]
[372604303,1752701452550,-460.0,0.00019808,2]
[372604305,1752701452559,-460.0,0.00019808,2]
[372604307,1752701452569,-460.0,0.00019808,2]
[372604309,1752701452579,-572.38,0.00019808,2]
[372604311,1752701452588,-1297.25,0.00019808,2]
[372604313,1752701452598,-159.25872685,0.00019808,2]
[372604315,1752701452608,-460.0,0.00019808,2]
[372604317,1752701452617,-460.0,0.00019808,2]
[372604319,1752701452627,-460.0,0.00019808,2]
[372604321,1752701452636,-460.0,0.00019808,2]
[372604323,1752701452646,-460.0,0.00019808,2]
[372604325,1752701452655,-835.9,0.00019808,2]
[372604327,1752701452665,-460.0,0.00019808,2]
[372604329,1752701452675,-151.0,0.00019808,2]
[372604331,1752701452684,-460.0,0.00019808,2]
[372604333,1752701452693,-151.0,0.00019808,2]
[372604335,1752701452703,-573.76,0.00019808,2]
[372604337,1752701452713,-1279.49,0.00019808,2]
[372604339,1752701452723,-327.879735,0.00019808,2]
[372604341,1752701452732,-460.0,0.00019808,2]